fUST/lending_fUST_20250725
["ID","MTS","AMOUNT","RATE_DAILY","PERIOD"]
[374779582,1753440654172,-390.07918665,0.0002,2]
[374779584,1753440654183,-460.0,0.0002,2]
[374779586,1753440654193,-460.0,0.0002,2]
[374779589,1753440654205,-460.0,0.0002,2]
[374779591,1753440654215,-460.0,0.0002,2]
[374779593,1753440654225,-460.0,0.0002,2]
[374779595,1753440654235,-460.0,0.0002,2]
[374779597,1753440654245,-524.23450938,0.00020021,2]
[374779599,1753440654256,-1000.0,0.00020021,2]
[374779601,1753440654266,-501.53651952,0.00020021,2]
[374779603,1753440654277,-202.89422899,0.00020021,2]
[374779605,1753440654287,-1000.0,0.00020021,2]
[374779607,1753440654300,-1000.0,0.00020021,2]
[374779609,1753440654310,-1000.0,0.00020021,2]
[374779611,1753440654320,-1000.0,0.00020021,2]
[374779613,1753440654331,-1000.0,0.00020021,2]
[374779615,1753440654340,-1002.8843737,0.00020021,2]
[374779617,1753440654350,-1000.0,0.00020021,2]
[374779619,1753440654360,-772.47122704,0.00020107,2]
[374779621,1753440654375,-162.0507939,0.00020164,2]
[374779623,1753440654385,-619.53,0.00020165,2]
[374779625,1753440654395,-308.23707,0.00020187,2]
[374779627,1753440654406,-500.0,0.00020268,2]
[374779629,1753440654416,-594.54475632,0.00020268,2]
[374779632,1753440654426,-1500.0,0.00020268,2]
[374779634,1753440654437,-221.8317617,0.00020273,2]
[374779636,1753440654448,-460.0,0.00020273,2]
[374779638,1753440654459,-460.0,0.00020273,2]
[374779640,1753440654468,-460.0,0.00020273,2]
[374779642,1753440654479,-468.77455087,0.00020273,2]
[374779644,1753440654489,-1497.41,0.00020273,2]
[374779646,1753440654499,-173.99045909,0.00020273,2]
[374779648,1753440654509,-495.12,0.00020273,2]
[374779650,1753440654519,-460.0,0.00020273,2]
[374779652,1753440654530,-460.0,0.00020273,2]
[374779654,1753440654539,-472.1,0.00020273,2]
[374779656,1753440654550,-460.0,0.00020273,2]
[374779658,1753440654559,-742.28,0.00020273,2]
[374779660,1753440654570,-663.17,0.00020273,2]
[374779662,1753440654580,-460.0,0.00020273,2]
[374779664,1753440654590,-460.0,0.00020273,2]
[374779666,1753440654600,-460.0,0.00020273,2]
[374779668,1753440654610,-1944.1,0.00020273,2]
[374779670,1753440654620,-460.0,0.00020273,2]
[374779672,1753440654630,-460.0,0.00020273,2]
[374779674,1753440654639,-460.0,0.00020273,2]
[374779676,1753440654649,-460.0,0.00020273,2]
[374779678,1753440654660,-460.0,0.00020273,2]
[374779680,1753440654669,-365.8638786,0.00020273,2]
[374779682,1753440654679,-487.17,0.00020273,2]
[374779684,1753440654690,-460.0,0.00020273,2]
[374779686,1753440654699,-460.0,0.00020273,2]
[374779688,1753440654710,-624.84,0.00020273,2]
[374779690,1753440654719,-460.0,0.00020273,2]
[374779692,1753440654730,-460.0,0.00020273,2]
[374779694,1753440654740,-512.75,0.00020273,2]
[374779696,1753440654751,-546.85,0.00020273,2]
[374779698,1753440654761,-460.0,0.00020273,2]
[374779700,1753440654771,-460.0,0.00020273,2]
[374779702,1753440654781,-460.0,0.00020273,2]
[374779704,1753440654792,-527.37,0.00020273,2]
[374779706,1753440654803,-573.91245876,0.00020273,2]
[374779708,1753440654813,-460.0,0.00020273,2]
[374779710,1753440654822,-597.41,0.00020273,2]
[374779712,1753440654832,-460.0,0.00020273,2]
[374779714,1753440654842,-460.0,0.00020273,2]
[374779716,1753440654851,-460.0,0.00020273,2]
[374779718,1753440654861,-360.0,0.00020273,2]
[374779720,1753440654871,-1232.87,0.00020273,2]
[374779722,1753440654883,-460.0,0.00020273,2]
[374779724,1753440654893,-460.0,0.00020273,2]
[374779727,1753440654903,-460.0,0.00020273,2]
[374779729,1753440654913,-834.14,0.00020273,2]
[374779731,1753440654923,-460.0,0.00020273,2]
[374779733,1753440654933,-460.0,0.00020273,2]
[374779735,1753440654942,-460.0,0.00020273,2]
[374779737,1753440654952,-460.0,0.00020273,2]
[374779738,1753440654962,-704.56815493,0.00020321,2]
[374779741,1753440654972,-1001.60230331,0.00020321,2]
[374779743,1753440654982,-151.0,0.00020321,2]
[374779745,1753440654992,-772.47122704,0.00020348,3]
[374779746,1753440655001,-260.0,0.00020454,2]
[374779748,1753440655011,-151.0,0.000205,3]
[374779750,1753440655021,-223.0315306,0.00020516,2]
[374779753,1753440655034,-433.1,0.00020538,3]
[374779755,1753440655044,-500.0,0.00020542,2]
[374779757,1753440655055,-460.0,0.00020547,2]
[374779759,1753440655064,-1497.41,0.00020547,2]
[374779760,1753440655074,-460.0,0.00020547,2]
[374779762,1753440655084,-460.0,0.00020547,2]
[374779764,1753440655094,-460.0,0.00020547,2]
[374779766,1753440655103,-742.28,0.00020547,2]
[374779768,1753440655112,-663.17,0.00020547,2]
[374779770,1753440655122,-460.0,0.00020547,2]
[374779773,1753440655132,-460.0,0.00020547,2]
[374779775,1753440655144,-460.0,0.00020547,2]
[374779777,1753440655155,-1944.1,0.00020547,2]
[374779779,1753440655164,-460.0,0.00020547,2]
[374779781,1753440655174,-460.0,0.00020547,2]
[374779783,1753440655183,-460.0,0.00020547,2]
[374779785,1753440655193,-460.0,0.00020547,2]
[374779787,1753440655203,-460.0,0.00020547,2]
[374779798,1753440655306,-487.17,0.00020547,2]
[374779800,1753440655316,-460.0,0.00020547,2]
[374779802,1753440655325,-574.99,0.00020547,2]
[374779804,1753440655335,-624.84,0.00020547,2]
[374779806,1753440655345,-460.0,0.00020547,2]
[374779808,1753440655355,-460.0,0.00020547,2]
[374779810,1753440655365,-512.75,0.00020547,2]
[374779812,1753440655377,-546.85,0.00020547,2]
[374779814,1753440655387,-460.0,0.00020547,2]
[374779816,1753440655397,-460.0,0.00020547,2]
[374779818,1753440655407,-527.37,0.00020547,2]
[374779820,1753440655416,-597.41,0.00020547,2]
[374779822,1753440655426,-460.0,0.00020547,2]
[374779824,1753440655435,-460.0,0.00020547,2]
[374779826,1753440655445,-460.0,0.00020547,2]
[374779828,1753440655455,-1232.87,0.00020547,2]
[374779830,1753440655465,-460.0,0.00020547,2]
[374779832,1753440655475,-460.0,0.00020547,2]
[374779834,1753440655485,-460.0,0.00020547,2]
[374779836,1753440655495,-834.14,0.00020547,2]
[374779838,1753440655507,-460.0,0.00020547,2]
[374779840,1753440655516,-460.0,0.00020547,2]
[374779842,1753440655526,-460.0,0.00020547,2]
[374779844,1753440655536,-1003.65022164,0.00020568,2]
[374779846,1753440655547,-649.92621861,0.00020568,2]
[374779848,1753440655556,-1615.75524555,0.00020568,2]
[374779850,1753440655566,-503.78824934,0.00020568,2]
[374779852,1753440655576,-1500.0,0.00020568,2]
[374779854,1753440655585,-1500.0,0.00020568,2]
[374779856,1753440655595,-502.66592554,0.00020568,2]
[374779858,1753440655604,-772.47122704,0.0002059,3]
[374779860,1753440655613,-1934.58716702,0.00020729,2]
[374779862,1753440655623,-3136.244565,0.00020729,2]
[374779864,1753440655632,-151.0,0.000208,3]
[374779866,1753440655642,-1000.0,0.00020816,2]
[374779868,1753440655651,-151.0,0.00020821,2]
[374779870,1753440655661,-526.196524,0.00020821,2]
[374779872,1753440655671,-526.196524,0.00020821,2]
[374779874,1753440655681,-1497.41,0.00020821,2]
[374779876,1753440655690,-460.0,0.00020821,2]
[374779878,1753440655700,-460.0,0.00020821,2]
[374779880,1753440655710,-742.28,0.00020821,2]
[374779882,1753440655720,-663.17,0.00020821,2]
[374779884,1753440655729,-315.44,0.00020821,2]
[374779886,1753440655739,-460.0,0.00020821,2]
[374779888,1753440655748,-151.0,0.00020821,2]
[374779889,1753440655757,-552.16,0.00020821,2]
[374779892,1753440655767,-1944.1,0.00020821,2]
[374779894,1753440655777,-151.0,0.00020821,2]
[374779895,1753440655786,-512.29,0.00020821,2]
[374779898,1753440655798,-151.0,0.00020821,2]
[374779899,1753440655808,-460.0,0.00020821,2]
[374779902,1753440655819,-460.0,0.00020821,2]
[374779903,1753440655828,-460.0,0.00020821,2]
[374779905,1753440655838,-460.0,0.00020821,2]
[374779908,1753440655848,-487.17,0.00020821,2]
[374779910,1753440655857,-460.0,0.00020821,2]
[374779912,1753440655867,-624.84,0.00020821,2]
[374779914,1753440655876,-460.0,0.00020821,2]
[374779916,1753440655887,-460.0,0.00020821,2]
[374779918,1753440655896,-512.75,0.00020821,2]
[374779920,1753440655906,-546.85,0.00020821,2]
[374779922,1753440655915,-460.0,0.00020821,2]
[374779924,1753440655925,-460.0,0.00020821,2]
[374779926,1753440655935,-527.37,0.00020821,2]
[374779928,1753440655947,-597.41,0.00020821,2]
[374779931,1753440655967,-460.0,0.00020821,2]
[374779934,1753440655983,-460.0,0.00020821,2]
[374779936,1753440655999,-494.63432746,0.00020821,2]
[374779937,1753440656015,-1232.87,0.00020821,2]
[374779938,1753440656034,-460.0,0.00020821,2]
[374779939,1753440656052,-316.79911607,0.00020821,2]
[374779940,1753440656067,-460.0,0.00020821,2]
[374779941,1753440656082,-834.14,0.00020821,2]
[374779942,1753440656103,-460.0,0.00020821,2]
[374779943,1753440656119,-460.0,0.00020821,2]
[374779944,1753440656131,-772.47122704,0.00020831,4]
[374779945,1753440656145,-980.5484476,0.00020868,2]
[374779946,1753440656161,-727.67305256,0.00020938,2]
[374779947,1753440656177,-250.59356224,0.0002095,2]
[374779948,1753440656195,-360.0,0.00021002,2]
[374779949,1753440656208,-772.47122704,0.00021072,4]
[374779950,1753440656220,-929.29,0.00021082,2]
[374779951,1753440656235,-151.0,0.00021095,2]
[374779952,1753440656250,-151.0,0.00021095,2]
[374779954,1753440656263,-151.0,0.00021095,2]
[374779957,1753440656278,-151.0,0.00021095,2]
[374779959,1753440656290,-1497.41,0.00021095,2]
[374779961,1753440656304,-742.28,0.00021095,2]
[374779964,1753440656318,-460.0,0.00021095,2]
[374779966,1753440656331,-663.17,0.00021095,2]
[374779969,1753440656345,-460.0,0.00021095,2]
[374779971,1753440656359,-1944.1,0.00021095,2]
[374779973,1753440656375,-460.0,0.00021095,2]
[374779976,1753440656388,-585.3,0.00021095,2]
[374779978,1753440656402,-460.0,0.00021095,2]
[374779980,1753440656415,-460.0,0.00021095,2]
[374779982,1753440656428,-487.17,0.00021095,2]
[374779985,1753440656441,-175.09637855,0.00021095,2]
[374779987,1753440656455,-624.84,0.00021095,2]
[374779990,1753440656468,-521.72,0.00021095,2]
[374779992,1753440656482,-460.0,0.00021095,2]
[374779994,1753440656497,-512.75,0.00021095,2]
[374779996,1753440656510,-546.85,0.00021095,2]
[374779999,1753440656524,-471.12,0.00021095,2]
[374780001,1753440656537,-496.2402934,0.00021095,2]
[374780003,1753440656552,-527.37,0.00021095,2]
[374780006,1753440656566,-597.41,0.00021095,2]
[374780008,1753440656579,-240.06,0.00021095,2]
[374780011,1753440656593,-460.0,0.00021095,2]
[374780013,1753440656605,-1232.87,0.00021095,2]
[374780015,1753440656619,-460.0,0.00021095,2]
[374780018,1753440656633,-460.0,0.00021095,2]
[374780020,1753440656646,-834.14,0.00021095,2]
[374780023,1753440656660,-460.0,0.00021095,2]
[374780025,1753440656673,-151.0,0.000211,3]
[374780027,1753440656686,-587.0,0.00021198,2]
[374780030,1753440656700,-151.0,0.000212,3]
[374780032,1753440656713,-389.797,0.00021245,2]
[374780034,1753440656726,-772.47122704,0.00021314,5]
[374780037,1753440656740,-1497.41,0.00021369,2]
[374780039,1753440656752,-151.0,0.00021369,2]
[374780041,1753440656765,-742.28,0.00021369,2]
[374780044,1753440656780,-460.0,0.00021369,2]
[374780046,1753440656792,-663.17,0.00021369,2]
[374780048,1753440656806,-460.0,0.00021369,2]
[374780051,1753440656820,-1944.1,0.00021369,2]
[374780053,1753440656832,-460.0,0.00021369,2]
[374780055,1753440656844,-460.0,0.00021369,2]
[374780057,1753440656853,-460.0,0.00021369,2]
[374780071,1753440656975,-487.17,0.00021369,2]
[374780073,1753440656994,-624.84,0.00021369,2]
[374780076,1753440657006,-512.75,0.00021369,2]
[374780078,1753440657015,-546.85,0.00021369,2]
[374780080,1753440657025,-527.37,0.00021369,2]
[374780082,1753440657034,-597.41,0.00021369,2]
[374780083,1753440657044,-460.0,0.00021369,2]
[374780085,1753440657055,-1232.87,0.00021369,2]
[374780087,1753440657065,-460.0,0.00021369,2]
[374780089,1753440657075,-460.0,0.00021369,2]
[374780091,1753440657085,-834.14,0.00021369,2]
[374780093,1753440657095,-151.0,0.000215,4]
[374780096,1753440657105,-460.0,0.0002155,2]
[374780098,1753440657115,-1934.58716702,0.00021555,2]
[374780100,1753440657124,-772.47122704,0.00021555,5]
[374780102,1753440657134,-3191.46146358,0.00021639,2]
[374780104,1753440657143,-151.0,0.00021643,2]
[374780106,1753440657159,-151.313445,0.00021643,2]
[374780107,1753440657178,-1497.41,0.00021643,2]
[374780110,1753440657188,-742.28,0.00021643,2]
[374780112,1753440657198,-460.0,0.00021643,2]
[374780114,1753440657208,-663.17,0.00021643,2]
[374780115,1753440657217,-460.0,0.00021643,2]
[374780118,1753440657228,-1944.1,0.00021643,2]
[374780119,1753440657237,-460.0,0.00021643,2]
[374780121,1753440657247,-460.0,0.00021643,2]
[374780124,1753440657257,-460.0,0.00021643,2]
[374780125,1753440657267,-487.17,0.00021643,2]
[374780127,1753440657276,-624.84,0.00021643,2]
[374780129,1753440657286,-512.75,0.00021643,2]
[374780131,1753440657296,-546.85,0.00021643,2]
[374780133,1753440657307,-527.37,0.00021643,2]
[374780135,1753440657317,-597.41,0.00021643,2]
[374780137,1753440657326,-460.0,0.00021643,2]
[374780139,1753440657336,-1232.87,0.00021643,2]
[374780141,1753440657345,-460.0,0.00021643,2]
[374780143,1753440657355,-460.0,0.00021643,2]
[374780145,1753440657365,-834.14,0.00021643,2]
[374780147,1753440657376,-648.0,0.00021762,2]
[374780149,1753440657385,-2157.0,0.00021762,2]
[374780151,1753440657395,-407.0,0.00021762,2]
[374780153,1753440657407,-969.0,0.00021762,2]
[374780155,1753440657416,-150.0,0.00021762,2]
[374780157,1753440657426,-772.47122704,0.00021797,6]
[374780159,1753440657437,-151.0,0.000218,3]
[374780161,1753440657448,-151.0,0.000218,3]
[374780163,1753440657458,-3191.46146358,0.00021824,2]
[374780165,1753440657468,-231.28369723,0.00021885,2]
[374780167,1753440657477,-172.5213931,0.00021889,2]
[374780169,1753440657487,-1497.41,0.00021917,2]
[374780171,1753440657497,-742.28,0.00021917,2]
[374780173,1753440657506,-460.0,0.00021917,2]
[374780175,1753440657516,-663.17,0.00021917,2]
[374780177,1753440657526,-460.0,0.00021917,2]
[374780179,1753440657536,-1944.1,0.00021917,2]
[374780181,1753440657546,-537.8,0.00021917,2]
[374780183,1753440657557,-460.0,0.00021917,2]
[374780185,1753440657566,-460.0,0.00021917,2]
[374780187,1753440657577,-487.17,0.00021917,2]
[374780189,1753440657587,-624.84,0.00021917,2]
[374780191,1753440657597,-512.75,0.00021917,2]
[374780193,1753440657607,-546.85,0.00021917,2]
[374780195,1753440657617,-527.37,0.00021917,2]
[374780197,1753440657627,-597.41,0.00021917,2]
[374780199,1753440657636,-460.0,0.00021917,2]
[374780201,1753440657646,-1232.87,0.00021917,2]
[374780203,1753440657656,-460.0,0.00021917,2]
[374780205,1753440657666,-239.2,0.00021917,2]
[374780207,1753440657679,-834.14,0.00021917,2]
[374780209,1753440657702,-150.27717762,0.00021918,2]
[374780211,1753440657714,-139192.82726752,0.00021989,2]
[374780213,1753440657724,-151.0,0.00021989,7]
[374780215,1753440657734,-237.386947,0.00021989,7]
[374780217,1753440657744,-242.054137,0.00021989,7]
[374780219,1753440657754,-151.0,0.00021989,7]
[374780221,1753440657764,-526.196524,0.00021989,7]
[374780223,1753440657775,-526.196524,0.00021989,7]
[374780225,1753440657785,-151.0,0.00021989,7]
[374780227,1753440657795,-151.0,0.00021989,7]
[374780229,1753440657806,-151.0,0.00021989,7]
[374780231,1753440657816,-151.0,0.00021989,7]
[374780233,1753440657825,-151.0,0.00021989,7]
[374780235,1753440657834,-151.0,0.00021989,7]
[374780237,1753440657844,-1239.05,0.00021998,2]
[374780239,1753440657854,-695.3,0.00022,2]
[374780241,1753440657864,-151.0,0.00022,2]
[374780243,1753440657873,-152.793937,0.00022012,3]
[374780245,1753440657883,-232.0,0.00022027,2]
[374780247,1753440657892,-506.136401,0.0002203,8]
[374780249,1753440657902,-772.47122704,0.00022038,6]
[374780251,1753440657911,-2910.69221025,0.00022073,2]
[374780253,1753440657920,-420.0,0.00022098,2]
[374780255,1753440657929,-151.0,0.000221,9]
[374780257,1753440657939,-151.0,0.000221,6]
[374780259,1753440657949,-3191.46146358,0.00022146,2]
[374780261,1753440657958,-1497.41,0.00022191,2]
[374780263,1753440657967,-742.28,0.00022191,2]
[374780265,1753440657977,-460.0,0.00022191,2]
[374780267,1753440657986,-663.17,0.00022191,2]
[374780269,1753440657997,-460.0,0.00022191,2]
[374780271,1753440658007,-1944.1,0.00022191,2]
[374780273,1753440658016,-460.0,0.00022191,2]
[374780275,1753440658025,-460.0,0.00022191,2]
[374780277,1753440658035,-487.17,0.00022191,2]
[374780279,1753440658045,-624.84,0.00022191,2]
[374780281,1753440658056,-512.75,0.00022191,2]
[374780283,1753440658065,-546.85,0.00022191,2]
[374780285,1753440658075,-527.37,0.00022191,2]
[374780287,1753440658084,-597.41,0.00022191,2]
[374780289,1753440658094,-460.0,0.00022191,2]
[374780291,1753440658103,-1232.87,0.00022191,2]
[374780293,1753440658113,-460.0,0.00022191,2]
[374780295,1753440658122,-834.14,0.00022191,2]
[374780297,1753440658132,-500.0,0.00022251,2]
[374780299,1753440658141,-772.47122704,0.00022279,6]
[374780301,1753440658151,-1934.58716702,0.0002238,2]
[374780303,1753440658160,-160.0,0.0002238,3]
[374780305,1753440658170,-12627.2413641,0.0002238,3]
[374780307,1753440658179,-3136.244565,0.0002238,2]
[374780309,1753440658189,-214.7599002,0.0002238,3]
[374780311,1753440658200,-500.0,0.0002239,2]
[374780313,1753440658210,-246.69771895,0.0002239,2]
[374780315,1753440658219,-151.0,0.0002239,2]
[374780317,1753440658229,-151.0,0.0002239,2]
[374780319,1753440658238,-151.0,0.0002239,2]
[374780321,1753440658248,-249.51129216,0.0002239,2]
[374780323,1753440658257,-239.87796106,0.0002239,2]
[374780325,1753440658267,-151.0,0.0002239,2]
[374780327,1753440658276,-500.0,0.0002239,2]
[374780329,1753440658286,-151.0,0.0002239,2]
[374780331,1753440658296,-201.56666915,0.000224,2]
[374780333,1753440658306,-2446.57,0.000224,7]
[374780335,1753440658316,-3191.46146358,0.00022449,2]
[374780337,1753440658325,-1497.41,0.00022465,2]
[374780339,1753440658335,-742.28,0.00022465,2]
[374780341,1753440658344,-460.0,0.00022465,2]
[374780343,1753440658354,-663.17,0.00022465,2]
[374780345,1753440658363,-460.0,0.00022465,2]
[374780347,1753440658377,-1944.1,0.00022465,2]
[374780349,1753440658387,-460.0,0.00022465,2]
[374780351,1753440658396,-460.0,0.00022465,2]
[374780353,1753440658406,-487.17,0.00022465,2]
[374780355,1753440658417,-624.84,0.00022465,2]
[374780357,1753440658427,-512.75,0.00022465,2]
[374780359,1753440658436,-546.85,0.00022465,2]
[374780361,1753440658446,-1399.7,0.00022465,2]
[374780363,1753440658456,-527.37,0.00022465,2]
[374780365,1753440658466,-597.41,0.00022465,2]
[374780367,1753440658476,-242.15575027,0.00022465,2]
[374780369,1753440658485,-1232.87,0.00022465,2]
[374780371,1753440658495,-460.0,0.00022465,2]
[374780373,1753440658504,-834.14,0.00022465,2]
[374780375,1753440658514,-150.0,0.00022473,2]
[374780377,1753440658524,-165873.8799045,0.0002248,2]
[374780392,1753440658666,-97825.93767913,0.0002248,2]
[374780394,1753440658679,-2553.99506335,0.0002248,2]
[374780396,1753440658691,-704602.78251376,0.0002248,2]
[374780397,1753440658700,-151.0,0.0002248,7]
[374780398,1753440658710,-151.0,0.0002248,7]
[374780399,1753440658720,-151.0,0.0002248,7]
[374780400,1753440658730,-151.0,0.0002248,7]
[374780401,1753440658739,-526.196524,0.0002248,7]
[374780403,1753440658749,-526.196524,0.0002248,7]
[374780405,1753440658759,-229.107257,0.0002248,7]
[374780407,1753440658768,-151.0,0.0002248,7]
[374780409,1753440658778,-151.0,0.0002248,7]
[374780412,1753440658788,-151.0,0.0002248,7]
[374780414,1753440658798,-151.0,0.0002248,7]
[374780416,1753440658808,-189858.74243423,0.0002249,7]
[374780418,1753440658817,-14612.04622275,0.0002249,7]
[374780439,1753440659015,-460.0,0.00019178,2]
[374780441,1753440659025,-460.0,0.00019178,2]
[374780443,1753440659035,-460.0,0.00019178,2]
[374780445,1753440659045,-460.0,0.00019452,2]
[374780447,1753440659057,-460.0,0.00019726,2]
[374780449,1753440659067,-460.0,0.0002,2]
[374780452,1753440659077,-581.08,0.00020273,2]
[374780453,1753440659086,-43822.90451821,0.0002249,7]
[374780456,1753440659096,-151.0,0.0002249,7]
[374780458,1753440659105,-152.121527,0.0002249,7]
[374780460,1753440659114,-151.0,0.0002249,7]
[374780462,1753440659123,-526.196524,0.0002249,7]
[374780464,1753440659132,-526.196524,0.0002249,7]
[374780465,1753440659142,-151.0,0.0002249,7]
[374780468,1753440659152,-151.0,0.0002249,7]
[374780469,1753440659161,-151.0,0.0002249,7]
[374780471,1753440659171,-160.0,0.0002249,7]
[374780473,1753440659181,-12627.2413641,0.0002249,7]
[374780476,1753440659191,-151.0,0.0002249,7]
[374780478,1753440659200,-373.52,0.000225,2]
[374780479,1753440659210,-41517.08,0.000225,2]
[374780482,1753440659220,-151.0,0.000225,7]
[374780484,1753440659229,-151.0,0.000225,6]
[374780486,1753440659238,-151.0,0.000225,10]
[374780487,1753440659248,-151.0,0.000225,7]
[374780490,1753440659258,-151.0,0.000225,8]
[374780492,1753440659268,-151.0,0.000225,9]
[374780494,1753440659277,-151.0,0.000225,6]
[374780495,1753440659286,-151.0,0.000225,10]
[374780497,1753440659296,-151.0,0.000225,9]
[374780500,1753440659308,-151.0,0.000225,9]
[374780502,1753440659318,-3569.07,0.000225,7]
[374780504,1753440659327,-11548.6,0.000225,7]
[374780506,1753440659336,-695.3,0.000225,2]
[374780508,1753440659345,-772.47122704,0.00022521,7]
[374780510,1753440659354,-5000.0,0.00022535,2]
[374780512,1753440659364,-160.0,0.00022558,3]
[374780514,1753440659377,-229.0,0.00022569,2]
[374780516,1753440659386,-232.0,0.00022578,2]
[374780518,1753440659395,-229.0,0.00022601,2]
[374780520,1753440659404,-343.12942,0.00022603,2]
[374780522,1753440659414,-229.0,0.00022604,2]
[374780524,1753440659424,-214.68849337,0.0002264,2]
[374780526,1753440659436,-17.31150663,0.0002264,2]
[374780528,1753440659447,-500.0,0.00022664,2]
[374780530,1753440659456,-151.0,0.00022664,2]
[374780532,1753440659466,-289.10496542,0.00022664,2]
[374780534,1753440659476,-151.0,0.00022664,2]
[374780536,1753440659485,-500.0,0.00022664,2]
[374780538,1753440659495,-195.62645046,0.00022664,2]
[374780540,1753440659505,-1041.21462009,0.00022739,2]
[374780542,1753440659517,-456.19537991,0.00022739,2]
[374780544,1753440659527,-742.28,0.00022739,2]
[374780546,1753440659537,-460.0,0.00022739,2]
[374780548,1753440659546,-663.17,0.00022739,2]
[374780550,1753440659558,-460.0,0.00022739,2]
[374780552,1753440659568,-955.96689086,0.00022739,2]
[374780555,1753440659579,-988.13310914,0.00022739,2]
[374780557,1753440659589,-460.0,0.00022739,2]
[374780559,1753440659598,-460.0,0.00022739,2]
[374780561,1753440659608,-487.17,0.00022739,2]
[374780563,1753440659618,-624.84,0.00022739,2]
[374780565,1753440659627,-512.75,0.00022739,2]
[374780567,1753440659636,-546.85,0.00022739,2]
[374780568,1753440659646,-527.37,0.00022739,2]
[374780571,1753440659656,-597.41,0.00022739,2]
[374780573,1753440659665,-1232.87,0.00022739,2]
[374780575,1753440659674,-69.94514219,0.00022739,2]
[374780577,1753440659686,-390.05485781,0.00022739,2]
[374780579,1753440659696,-60.94423419,0.00022739,2]
[374780581,1753440659708,-490.71982744,0.00022739,2]
[374780592,1753440659798,-460.0,0.00019178,2]
[374780594,1753440659810,-282.47593837,0.00022739,2]
[374780596,1753440659819,-229.0,0.00022751,2]
[374780598,1753440659828,-772.47122704,0.00022762,7]
[374780599,1753440659837,-2710.09219553,0.00022764,4]
[374780623,1753440660055,-460.0,0.00019178,2]
[374780625,1753440660065,-460.0,0.00019452,2]
[374780627,1753440660075,-460.0,0.00019726,2]
[374780629,1753440660085,-460.0,0.0002,2]
[374780631,1753440660095,-460.0,0.00020273,2]
[374780633,1753440660104,-1289.90780447,0.00022764,4]
[374780635,1753440660114,-500.0,0.00022778,8]
[374780637,1753440660123,-500.0,0.00022778,8]
[374780639,1753440660133,-643.0,0.000228,2]
[374780641,1753440660143,-151.0,0.00022802,5]
[374780643,1753440660153,-1548.82,0.00022814,2]
[374780645,1753440660162,-229.0,0.00022815,2]
[374780647,1753440660171,-152.793937,0.00022815,2]
[374780649,1753440660180,-229.0,0.00022856,2]
[374780651,1753440660190,-229.0,0.00022883,2]
[374780653,1753440660199,-36839.56577463,0.000229,7]
[374780656,1753440660214,-26816.7036,0.000229,7]
[374780658,1753440660226,-460.0,0.000229,7]
[374780660,1753440660237,-2083.02350172,0.000229,7]
[374781634,1753440786772,1118.0,0.00023,90]
[374781641,1753441650193,308.019879,0.00013699,2]
[374781935,1753441833000,-300.0,0.0001801,2]